[Event "GM ZIA Smirity-A 2025"]
[Site "Dhaka"]
[Date "2025.02.21"]
[Round "8.13"]
[White "Neelava, Choudhury"]
[Black "Safayat, Kibria Azaan"]
[Result "1-0"]
[Annotator "NA RC"]
[ECO "C50"]
[WhiteElo "1784"]
[BlackElo "1850"]
[PlyCount "77"]
[EventDate "2025.02.17"]
[EventType "swiss"]
[EventCountry "BAN"]
[SourceTitle "playchess.com"]
[Source "ChessBase"]
[SourceQuality "1"]
[TimeControl "5400+30"]

1. e4 {[%emt 0:01:56]} e5 {[%emt 0:00:15]} 2. Nf3 {[%emt 0:00:04]} Nc6 {[%emt 0:00:08]} 3. Bc4 {[%emt 0:00:10]} Bc5 {[%emt 0:00:22]} 4. c3 {[%emt 0:00:22]} Nf6 {[%emt 0:00:10]} 5. O-O {[%emt 0:00:12]} d6 {[%emt 0:00:51]} 6. d4 {[%emt 0:01:41]} Bb6 {[%emt 0:01:13]} 7. dxe5 {[%emt 0:05:58]} Nxe5 {[%emt 0:03:42]} 8. Nxe5 {[%emt 0:01:52]} dxe5 {[%emt 0:00:06]} 9. Qxd8+ {[%emt 0:01:00]} Kxd8 {[%emt 0:00:16]} 10. Bxf7 {[%emt 0:02:18]} Nxe4 {[%emt 0:03:16]} 11. Be3 {[%emt 0:01:42]} Bxe3 {[%emt 0:01:50]} 12. fxe3 {[%emt 0:00:05]} Ke7 {[%emt 0:00:26]} 13. Bb3 {[%emt 0:02:17]} Be6 {[%emt 0:00:45]} 14. Bc2 {[%emt 0:01:22]} Nd6 {[%emt 1:24:10]} 15. Nd2 {[%emt 0:01:35]} Nc4 {[%emt 0:00:00]} 16. Nxc4 {[%emt 0:01:55]} Bxc4 {[%emt 0:00:00]} 17. Rfd1 {[%emt 0:01:49]} g6 {[%emt 0:00:00]} 18. Bd3 {[%emt 0:00:33]} Bxd3 {[%emt 0:00:00]} 19. Rxd3 {[%emt 0:00:06]} Rad8 {[%emt 0:00:00]} 20. Rad1 {[%emt 0:00:06]} Rxd3 {[%emt 0:00:00]} 21. Rxd3 {[%emt 0:00:05]} Rd8 {[%emt 0:00:00]} 22. Rxd8 {[%emt 0:00:50]} Kxd8 {[%emt 0:00:00]} 23. Kf2 {[%emt 0:00:59]} Ke7 {[%emt 0:00:00]} 24. Kf3 {[%emt 0:01:00]} Kf6 {[%emt 0:00:00]} 25. Ke4 {[%emt 0:00:07]} Ke6 {[%emt 0:00:00]} 26. c4 {[%emt 0:00:53]} c6 {[%emt 0:00:00]} 27. b4 {[%emt 0:02:08]} Kf6 {[%emt 0:00:00]} 28. g4 {[%emt 0:03:05]} h6 {[%emt 0:00:00]} 29. h4 {[%emt 0:00:17]} Ke6 {[%emt 0:00:00]} 30. Kd3 {[%emt 0:00:07]} b6 {[%emt 0:00:00]} 31. Ke4 {[%emt 0:01:34]} Kd6 {[%emt 0:00:00]} 32. b5 {[%emt 0:06:45]} cxb5 {[%emt 0:00:00]} 33. cxb5 {[%emt 0:00:19]} Ke6 {[%emt 0:00:00]} 34. h5 {[%emt 0:00:06]} gxh5 {[%emt 0:00:00]} 35. gxh5 {[%emt 0:00:05]} Kf6 {[%emt 0:02:20]} 36. Kd5 {[%emt 0:01:27]} Kf5 {[%emt 0:00:01]} 37. e4+ {[%emt 0:00:11]} Kf4 {[%emt 0:09:09]} 38. a3 {[%emt 1:02:29]} Ke3 {[%emt 0:00:00]} 39. Kxe5 {[%emt 0:00:00]} 1-0